bitfinex-derivatives/quotes_ETHF0:USTF0_20260223
["timestamp","ask_amount","ask_price","bid_price","bid_amount"]
[1771889402336,0.28450742,1861.6,1861.0,0.57751077]
[1771889403035,0.28450742,1861.6,1861.0,0.58279071]
[1771889410435,0.28231877,1861.5,1861.0,0.58279071]
[1771889412641,0.75046001,1861.6,1861.0,0.58279071]
[1771889412837,0.28246001,1861.5,1861.0,0.58279071]
[1771889413042,0.75046001,1861.6,1861.0,0.58279071]
[1771889418744,0.29292691,1861.4,1861.0,0.58279071]
[1771889421150,0.29299517,1861.5,1861.0,0.58279071]
[1771889422645,0.468,1861.6,1861.0,0.58279071]
[1771889422850,0.49624608,1861.5,1861.0,0.58279071]
[1771889423052,0.75029369,1861.6,1861.0,0.58279071]
[1771889423247,0.49625991,1861.5,1861.1,0.56395003]
[1771889423448,0.75029369,1861.6,1861.1,0.56395003]
[1771889423646,0.49625809,1861.5,1861.1,0.56395003]
[1771889423852,0.75029369,1861.6,1861.1,0.56395003]
[1771889424656,0.27985416,1861.4,1861.0,0.56922997]
[1771889424947,0.27985416,1861.4,1861.0,0.00527994]
[1771889425157,0.27985416,1861.2,1860.8,0.56395003]
[1771889426056,0.27985416,1861.2,1860.8,0.57045906]
[1771889429652,0.27985416,1861.2,1860.8,0.00650903]
[1771889429852,0.27985416,1861.2,1860.8,0.57045906]
[1771889430352,0.27985416,1861.2,1860.8,0.00650903]
[1771889430553,0.27985416,1861.2,1860.8,0.57045906]
[1771889432055,0.27985416,1861.2,1860.6,0.56395003]
[1771889433153,0.27985416,1861.2,1860.6,0.5693312]
[1771889435356,0.96596111,1861.4,1860.8,0.56395003]
[1771889435556,0.49796111,1861.3,1860.8,0.56395003]
[1771889442263,0.468,1861.4,1860.9,0.56395003]
[1771889442569,0.49416867,1861.5,1860.9,0.56395003]
[1771889442859,0.49905942,1861.7,1861.1,0.56395003]
[1771889443061,0.98992967,1861.6,1861.1,0.56395003]
[1771889443265,0.49416867,1861.6,1861.1,0.56395003]
[1771889443461,0.49416867,1861.6,1860.9,0.56395003]
[1771889448466,0.48674004,1861.5,1860.9,0.56395003]
[1771889451573,0.468,1861.6,1860.9,0.56395003]
[1771889451777,0.468,1861.6,1861.0,0.59293677]
[1771889454275,0.49145672,1861.7,1861.0,0.59293677]
[1771889464787,0.26861,1862.0,1861.2,0.59293677]
[1771889464788,0.48149608,1862.0,1861.2,0.59293677]
[1771889465890,0.48733854,1862.0,1861.2,0.59293677]
[1771889466487,0.48733854,1862.0,1861.3,0.59293677]
[1771889482604,0.48527551,1862.0,1861.3,0.59293677]
[1771889486306,0.49644518,1861.9,1861.3,0.59293677]
[1771889486508,0.48527551,1862.0,1861.3,0.59293677]
[1771889486704,0.49645901,1861.9,1861.3,0.59293677]
[1771889486905,0.48527551,1862.0,1861.3,0.59293677]
[1771889487106,0.49647894,1861.9,1861.3,0.59293677]
[1771889487307,0.48527551,1862.0,1861.3,0.59293677]
[1771889487509,0.49662998,1861.9,1861.3,0.59293677]
[1771889487804,0.48527551,1862.0,1861.3,0.59293677]
[1771889488005,0.49663384,1861.9,1861.3,0.59293677]
[1771889488206,0.48527551,1862.0,1861.3,0.59293677]
[1771889488405,0.4966877,1861.9,1861.3,0.59293677]
[1771889488605,0.48527551,1862.0,1861.3,0.59293677]
[1771889488806,0.49668772,1861.9,1861.3,0.59293677]
[1771889489006,0.48527551,1862.0,1861.3,0.59293677]
[1771889489206,0.49668717,1861.9,1861.3,0.59293677]
[1771889489506,0.48527551,1862.0,1861.3,0.59293677]
[1771889489705,0.4967364,1861.9,1861.3,0.59293677]
[1771889489906,0.48527551,1862.0,1861.3,0.59293677]
[1771889490106,0.49673648,1861.9,1861.3,0.59293677]
[1771889490408,0.48527551,1862.0,1861.3,0.59293677]
[1771889490708,0.99364255,1861.9,1861.3,0.59293677]
[1771889490909,0.49690236,1861.9,1861.3,0.59293677]
[1771889493612,0.00584246,1862.0,1861.3,0.59293677]
[1771889493911,0.50275928,1862.0,1861.3,0.59293677]
[1771889499220,0.50275928,1862.0,1861.5,0.56966387]
[1771889510321,0.96439067,1862.2,1861.5,0.56966387]
[1771889510520,0.49639067,1862.2,1861.7,0.56257245]
[1771889510727,0.49639067,1862.0,1861.6,0.56257245]
[1771889511117,0.49639067,1862.0,1861.4,0.56257245]
[1771889511520,0.50100724,1862.0,1861.4,0.56257245]
[1771889512825,0.49564895,1861.8,1861.4,0.56257245]
[1771889513025,0.49564895,1861.6,1861.1,0.56257245]
[1771889513626,0.49564895,1861.6,1861.1,3.1021386]
[1771889513827,0.49564895,1861.6,1861.2,0.56257245]
[1771889517431,0.49803345,1861.8,1861.2,0.56257245]
[1771889522736,0.47261657,1862.0,1861.2,0.56257245]
[1771889523035,7.47427256,1861.9,1861.2,0.56257245]
[1771889523331,0.49660369,1861.8,1861.2,0.56257245]
[1771889523632,0.49640943,1861.9,1861.4,0.56257245]
[1771889524535,0.96833221,1862.0,1861.4,0.56257245]
[1771889524729,0.47261657,1862.0,1861.6,0.56257245]
[1771889524931,0.96371564,1862.2,1861.6,0.56257245]
[1771889525237,0.99239191,1862.1,1861.6,0.56257245]
[1771889525438,0.49571564,1862.1,1861.6,0.56257245]
[1771889526039,0.50208674,1862.1,1861.6,0.56257245]
[1771889531443,0.50146623,1861.7,1861.0,0.56257245]
[1771889531842,0.50146623,1861.7,1861.1,0.56257245]
[1771889539147,0.2749611,1862.1,1861.0,0.6024899]
[1771889539148,0.50218045,1861.5,1861.0,0.6024899]
[1771889543049,0.50218045,1861.5,1860.9,0.55568673]
[1771889545053,0.4973226,1861.4,1860.9,0.55568673]
[1771889545457,0.4973226,1861.3,1860.7,0.55568673]
[1771889553464,0.4973226,1861.3,1860.8,0.55568673]
[1771889556069,0.50359534,1861.4,1861.0,0.55568673]
[1771889559969,0.50359534,1861.4,1860.7,0.55568673]
[1771889562268,1.00171179,1861.3,1860.7,0.55568673]
[1771889562566,0.50508422,1861.3,1860.7,0.55568673]
[1771889572275,0.49752224,1861.2,1860.7,0.55568673]
[1771889572476,0.50508422,1861.3,1860.7,0.55568673]
[1771889572676,0.49752224,1861.2,1860.7,0.55568673]
[1771889572879,0.50508422,1861.3,1860.7,0.55568673]
[1771889573079,0.49753611,1861.2,1860.7,0.55568673]
[1771889573275,0.50508422,1861.3,1860.7,0.55568673]
[1771889573475,0.49758208,1861.2,1860.7,0.55568673]
[1771889573676,0.50508422,1861.3,1860.7,0.55568673]
[1771889573979,0.4975851,1861.2,1860.7,0.55568673]
[1771889574175,0.50508422,1861.3,1860.7,0.55568673]
[1771889574378,0.49758517,1861.2,1860.7,0.55568673]
[1771889574676,0.50508422,1861.3,1860.7,0.55568673]
[1771889574878,0.49763207,1861.2,1860.7,0.55568673]
[1771889575082,0.50508422,1861.3,1860.7,0.55568673]
[1771889575277,0.49763227,1861.2,1860.7,0.55568673]
[1771889575583,0.50508422,1861.3,1860.7,0.55568673]
[1771889575873,0.49767172,1861.2,1860.7,0.55568673]
[1771889576080,0.50508422,1861.3,1860.7,0.55568673]
[1771889576282,0.49767926,1861.2,1860.7,0.55568673]
[1771889576475,0.50508422,1861.3,1860.7,0.55568673]
[1771889576675,0.49769809,1861.2,1860.7,0.55568673]
[1771889576879,0.50508422,1861.3,1860.7,0.55568673]
[1771889577080,0.49770678,1861.2,1860.7,0.55568673]
[1771889577280,0.50508422,1861.3,1860.7,0.55568673]
[1771889577479,0.49770413,1861.2,1860.7,0.55568673]
[1771889577777,0.50508422,1861.3,1860.7,0.55568673]
[1771889577979,0.49778454,1861.2,1860.7,0.55568673]
[1771889578182,0.50508422,1861.3,1860.7,0.55568673]
[1771889578379,0.49780143,1861.2,1860.7,0.55568673]
[1771889578576,0.50508422,1861.3,1860.7,0.55568673]
[1771889578776,0.49786782,1861.2,1860.7,0.55568673]
[1771889578978,0.50508422,1861.3,1860.7,0.55568673]
[1771889579279,0.49787639,1861.2,1860.7,0.55568673]
[1771889579576,0.50508422,1861.3,1860.7,0.55568673]
[1771889579776,0.49789363,1861.2,1860.7,0.55568673]
[1771889579971,0.50508422,1861.3,1860.7,0.55568673]
[1771889580169,0.49790736,1861.2,1860.7,0.55568673]
[1771889580471,0.50508422,1861.3,1860.7,0.55568673]
[1771889580673,0.49791826,1861.2,1860.7,0.55568673]
[1771889580871,0.49690987,1861.5,1860.7,3.09723867]
[1771889581077,6.81768156,1861.4,1860.8,0.56473992]
[1771889581281,0.49690987,1861.5,1860.8,0.56473992]
[1771889581580,0.4979278,1861.4,1860.8,0.56473992]
[1771889581776,0.49690987,1861.5,1860.8,0.56473992]
[1771889581977,0.99483783,1861.4,1860.8,0.56473992]
[1771889582178,0.49690987,1861.4,1860.8,0.56473992]
[1771889593984,0.97525606,1861.6,1860.9,0.56473992]
[1771889594186,0.97525606,1861.6,1861.1,0.56473992]
[1771889596389,0.50725606,1861.6,1861.1,0.56473992]
[1771889596590,0.50644494,1862.0,1861.1,0.56473992]
[1771889596791,0.50644494,1861.8,1861.1,0.56473992]
[1771889596991,1.00409264,1861.7,1861.1,0.56473992]
[1771889597191,0.50644494,1861.7,1861.1,0.56473992]
[1771889597987,0.50609643,1862.0,1861.5,0.59412973]
[1771889598289,0.51246753,1862.1,1861.5,0.59412973]
[1771889607796,0.51246753,1862.1,1861.4,0.5943035]
[1771889615306,0.52986269,1862.0,1861.4,0.5943035]
[1771889624411,0.52504614,1861.8,1861.4,0.5943035]
[1771889639216,0.49758602,1861.7,1861.4,0.5943035]
[1771889639416,0.52405144,1861.7,1861.4,0.5943035]
[1771889640117,0.52405144,1861.7,1861.2,0.57511984]
[1771889640314,0.52386903,1861.5,1861.1,0.57511984]
[1771889641222,0.52386903,1861.5,1861.0,0.57511984]
[1771889647825,0.98303115,1861.6,1861.1,0.57511984]
[1771889649326,0.51585489,1861.5,1861.1,0.57511984]
[1771889652333,0.97159768,1861.6,1861.1,0.57511984]
[1771889654133,0.50359768,1861.5,1861.1,0.57511984]
[1771889655335,0.50359768,1861.5,1860.9,0.57511984]
[1771889669440,0.99734793,1861.4,1860.9,0.57511984]
[1771889669739,0.49938809,1861.4,1860.9,0.57511984]
[1771889671340,0.4994145,1861.5,1860.9,0.57511984]
[1771889671538,0.49796159,1861.4,1860.9,0.57511984]
[1771889671740,0.4994145,1861.5,1860.9,0.57511984]
[1771889672039,0.49796158,1861.4,1860.9,0.57511984]
[1771889672239,0.4994145,1861.5,1860.9,0.57511984]
[1771889672540,0.49796603,1861.4,1860.9,0.57511984]
[1771889672740,0.4994145,1861.5,1860.9,0.57511984]
[1771889672930,0.49796616,1861.4,1860.9,0.57511984]
[1771889673136,0.4994145,1861.5,1860.9,0.57511984]
[1771889673335,0.49797312,1861.4,1860.9,0.57511984]
[1771889673541,0.4994145,1861.5,1860.9,0.57511984]
[1771889673740,0.49797316,1861.4,1860.9,0.57511984]
[1771889673942,0.4994145,1861.5,1860.9,0.57511984]
[1771889674136,0.49797317,1861.4,1860.9,0.57511984]
[1771889674343,0.49944185,1861.4,1860.9,0.57511984]
[1771889675944,0.49645648,1861.5,1860.9,0.57511984]
[1771889685653,0.99091945,1861.4,1860.9,0.57511984]
[1771889685855,0.49359936,1861.4,1860.9,0.57511984]
[1771889700267,0.51107684,1861.5,1860.9,0.57511984]
[1771889700568,0.97880276,1861.6,1860.9,0.57511984]
[1771889700774,0.97880276,1861.9,1861.1,0.59679544]
[1771889700973,6.29017317,1861.8,1861.1,0.59679544]
[1771889701164,0.0063711,1862.1,1861.7,0.59679544]
[1771889701873,0.51717386,1862.1,1861.4,0.59679544]
[1771889709479,0.4976016,1862.0,1861.1,0.59679544]
[1771889712879,0.50694463,1861.8,1861.1,0.59679544]
[1771889716684,0.51111752,1861.7,1861.1,0.59679544]
[1771889727593,0.50710664,1861.5,1861.1,0.59679544]
[1771889735998,0.50925915,1861.8,1861.1,0.59679544]
[1771889736293,1.00302083,1861.7,1861.1,0.59679544]
[1771889736494,0.49376168,1861.6,1861.1,0.59679544]
[1771889736698,1.00588988,1861.6,1861.1,0.59679544]
[1771889736900,0.5121282,1861.6,1861.1,0.59679544]
[1771889743606,0.2686,1862.0,1861.1,0.59679544]
[1771889743607,0.55037989,1861.9,1861.1,0.59679544]
[1771889743805,1.04463482,1861.8,1861.1,0.59679544]
[1771889744005,1.04463482,1861.7,1861.1,0.59679544]
[1771889744205,0.49425493,1861.6,1861.1,0.59679544]
[1771889744410,0.55037989,1861.8,1861.1,0.59679544]
[1771889744603,0.4943302,1861.7,1861.1,0.59679544]
[1771889744807,0.4943302,1861.6,1861.1,0.59679544]
[1771889745004,0.55037989,1861.8,1861.1,0.59679544]
[1771889745311,1.04407956,1861.7,1861.2,0.60014626]
[1771889745509,0.49433018,1861.6,1861.2,0.60014626]
[1771889747711,0.55203505,1861.9,1861.4,0.60014626]
[1771889747912,0.49455728,1861.8,1861.4,0.60014626]
[1771889748112,0.49455728,1861.7,1861.4,0.60014626]
[1771889748412,0.55133186,1861.8,1861.4,0.60014626]
[1771889748711,0.49446325,1861.7,1861.4,0.60014626]
[1771889748904,0.55133186,1861.8,1861.4,0.60014626]
[1771889749111,0.49446736,1861.7,1861.4,0.60014626]
[1771889749305,0.55133186,1861.8,1861.4,0.60014626]
[1771889749507,0.49440899,1861.7,1861.4,0.60014626]
[1771889749707,0.55133186,1861.8,1861.4,0.60014626]
[1771889749909,0.49440923,1861.7,1861.4,0.60014626]
[1771889750211,0.55133186,1861.8,1861.4,0.60014626]
[1771889750413,0.49436326,1861.7,1861.4,0.60014626]
[1771889750615,0.55133186,1861.8,1861.4,0.60014626]
[1771889750914,0.49436327,1861.7,1861.4,0.60014626]
[1771889751113,0.55133186,1861.8,1861.4,0.60014626]
[1771889751312,0.49432331,1861.7,1861.4,0.60014626]
[1771889751514,0.55133186,1861.8,1861.4,0.60014626]
[1771889751714,0.4943233,1861.7,1861.4,0.60014626]
[1771889751914,0.55133186,1861.8,1861.4,0.60014626]
[1771889752213,0.49432332,1861.7,1861.4,0.60014626]
[1771889752414,0.55133186,1861.8,1861.4,0.60014626]
[1771889752614,0.49428542,1861.7,1861.4,0.60014626]
[1771889752813,0.55133186,1861.8,1861.4,0.60014626]
[1771889753014,0.49428537,1861.7,1861.4,0.60014626]
[1771889753216,0.55133186,1861.8,1861.4,0.60014626]
[1771889753411,0.49426537,1861.7,1861.4,0.60014626]
[1771889753715,0.55133186,1861.8,1861.4,0.60014626]
[1771889753922,0.49426537,1861.7,1861.4,0.60014626]
[1771889754123,0.55133186,1861.8,1861.4,0.60014626]
[1771889754324,0.49423701,1861.7,1861.4,0.60014626]
[1771889754518,0.55133186,1861.8,1861.4,0.60014626]
[1771889754718,0.49423701,1861.7,1861.4,0.60014626]
[1771889755020,0.55133186,1861.8,1861.4,0.60014626]
[1771889755221,0.49423701,1861.7,1861.4,0.60014626]
[1771889755520,0.55133186,1861.8,1861.4,0.60014626]
[1771889755721,0.49421148,1861.7,1861.4,0.60014626]
[1771889755917,0.55133186,1861.8,1861.2,0.60877863]
[1771889756118,0.60660036,1861.6,1861.2,0.60877863]
[1771889756620,0.60660036,1861.8,1861.2,0.60877863]
[1771889756820,0.49420592,1861.7,1861.2,0.60877863]
[1771889757120,0.60660036,1861.8,1861.2,0.60877863]
[1771889757314,0.49420184,1861.7,1861.2,0.60877863]
[1771889757518,0.60660036,1861.7,1861.2,0.60877863]
[1771889760722,0.60660036,1861.7,1861.0,0.60877863]
[1771889760927,0.60660036,1861.5,1861.0,0.60877863]
[1771889761526,0.60660036,1861.5,1861.0,3.14913887]
[1771889761821,0.60660036,1861.5,1861.1,0.60877863]
[1771889765425,0.60660036,1861.5,1861.0,2.54036024]
[1771889765426,0.60660036,1861.5,1861.0,0.60877863]
[1771889769030,0.60660036,1861.4,1861.0,0.60877863]
[1771889769231,0.60660036,1861.4,1860.8,0.60877863]
[1771889773028,0.60660036,1861.0,1860.6,0.00538117]
[1771889773233,0.60660036,1861.0,1860.5,0.60877863]
[1771889774232,0.60660036,1861.0,1860.5,0.61534544]
[1771889774737,0.60660036,1860.8,1860.4,0.60877863]
[1771889774938,0.60660036,1860.8,1860.3,0.60877863]
[1771889775531,0.60660036,1860.6,1859.9,0.60877863]
[1771889775834,0.61116401,1860.6,1859.9,0.61480947]
[1771889776434,0.60660036,1860.4,1859.9,0.61480947]
[1771889777832,0.60660036,1860.4,1859.7,0.60626245]
[1771889778034,0.55318079,1859.7,1859.2,0.60626245]
[1771889778231,2.54036024,1859.8,1858.8,0.26906]
[1771889778232,0.55318079,1860.1,1859.4,0.60626245]
[1771889778539,0.55318079,1860.1,1859.6,0.60626245]
[1771889779036,0.55318079,1860.4,1859.8,0.60626245]
[1771889779736,0.55318079,1860.2,1859.8,0.60626245]
[1771889781042,0.58089978,1860.1,1859.6,0.60904377]
[1771889783142,0.58089978,1859.9,1859.6,0.0066937]
[1771889783337,0.58089978,1859.9,1859.4,0.60235007]
[1771889783540,0.58089978,1859.7,1859.0,0.60235007]
[1771889784044,0.58089978,1859.7,1859.1,0.60235007]
[1771889784338,0.58089978,1859.7,1859.1,0.60752911]
[1771889784538,0.58089978,1859.5,1859.1,0.60752911]
[1771889785242,0.58089978,1859.5,1859.1,0.00517904]
[1771889787246,0.58089978,1859.8,1859.2,0.60235007]
[1771889787441,0.58089978,1859.7,1859.1,0.60752911]
[1771889787940,0.58089978,1859.3,1859.1,0.00517904]
[1771889788140,0.58089978,1859.3,1858.8,0.60235007]
[1771889789045,0.58089978,1859.3,1858.8,0.60811417]
[1771889791548,0.58089978,1859.4,1858.9,0.60235007]
[1771889791741,0.58089978,1859.7,1858.9,0.60235007]
[1771889792248,0.58089978,1859.5,1858.9,0.60235007]
[1771889794852,0.58089978,1859.5,1858.8,0.0057641]
[1771889795050,0.58089978,1859.3,1858.8,0.0057641]
[1771889795652,0.58089978,1859.3,1858.8,0.60811417]
[1771889795852,0.58089978,1859.3,1858.9,0.60235007]
[1771889797052,0.58089978,1859.3,1858.8,3.14847441]
[1771889797255,0.58089978,1859.3,1858.9,0.60235007]
[1771889797650,0.58089978,1859.3,1858.2,0.60235007]
[1771889797845,0.58089978,1859.0,1858.4,0.60235007]
[1771889798955,0.58658904,1859.0,1858.4,0.60834168]
[1771889802955,0.468,1859.2,1858.8,0.60235007]
[1771889803252,0.58089978,1859.3,1858.8,0.60235007]
[1771889803950,0.58578958,1859.3,1858.8,0.60235007]
[1771889807359,0.0048898,1859.3,1858.8,0.60235007]
[1771889807955,0.55817812,1859.3,1858.8,0.60235007]
[1771889808553,0.0048898,1859.3,1858.8,0.60235007]
[1771889809962,0.55817812,1859.3,1858.8,0.60235007]
[1771889812069,0.55328832,1859.5,1858.8,0.60235007]
[1771889813170,0.55824485,1859.5,1858.8,0.60235007]
[1771889816470,0.55328832,1859.3,1858.8,0.60235007]
[1771889819568,0.55328832,1859.2,1858.4,0.00599161]
[1771889819774,0.55328832,1859.0,1858.4,0.60768822]
[1771889820467,0.55328832,1858.8,1857.7,8.44818057]
[1771889820673,0.55328832,1858.0,1857.4,0.60169661]
[1771889820873,0.55328832,1858.0,1857.2,0.60169661]
[1771889821575,0.5592905,1858.0,1857.3,0.60169661]
[1771889822767,0.55328832,1858.2,1857.5,0.60169661]
[1771889823874,0.56020563,1858.2,1857.5,0.60169661]
[1771889831275,0.56020563,1858.2,1857.3,0.26927]
[1771889831575,0.56020563,1858.2,1857.4,0.60169661]
[1771889834580,0.56020563,1858.2,1857.2,0.6059781]
[1771889835083,0.56020563,1858.2,1857.2,0.00428149]
[1771889835684,0.55328832,1858.0,1857.2,0.00428149]
[1771889836079,0.55328832,1858.0,1856.9,0.87103661]
[1771889836279,0.55328832,1858.0,1857.0,0.60169661]
[1771889837079,0.55328832,1858.0,1857.0,0.60597588]
[1771889838182,0.55328832,1858.0,1857.2,0.560796]
[1771889841592,0.55328832,1858.0,1857.1,0.59877533]
[1771889843788,0.2692,1857.9,1857.0,0.00427927]
[1771889843992,0.58911966,1857.8,1857.0,0.00427927]
[1771889844190,0.58911966,1857.8,1857.0,0.6030546]
[1771889845394,0.58911966,1857.8,1857.0,0.00427927]
[1771889846691,6.62782,1856.4,1854.8,5.98664646]
[1771889846892,0.48869765,1856.3,1854.8,0.61064646]
[1771889847093,0.26933,1857.0,1855.2,0.61064646]
[1771889847394,0.26936,1856.8,1855.2,0.61064646]
[1771889847594,0.27567048,1856.8,1855.2,0.61691913]
[1771889848199,0.26939,1856.6,1855.2,0.61691913]
[1771889848396,0.01265671,1856.5,1855.2,0.61691913]
[1771889852300,0.01265671,1856.5,1855.4,0.59877533]
[1771889862106,0.0327186,1856.4,1855.4,0.59877533]
[1771889867106,0.30956082,1856.5,1855.4,0.59877533]
[1771889868804,0.04368895,1856.7,1855.6,0.58892085]
[1771889869712,0.04368895,1856.5,1855.6,0.58892085]
[1771889875307,0.04547743,1856.3,1855.6,0.58892085]
[1771889876312,0.48471114,1856.2,1855.6,0.58892085]
[1771889876513,0.04547743,1856.3,1855.6,0.58892085]
[1771889876716,0.48475339,1856.2,1855.6,0.58892085]
[1771889877010,0.04547743,1856.3,1855.6,0.58892085]
[1771889877216,6.78344726,1856.2,1855.6,0.58892085]
[1771889877512,0.04549127,1856.2,1855.6,0.58892085]
[1771889878213,0.04549127,1856.5,1855.6,0.58892085]
[1771889878413,0.04527732,1856.3,1855.6,0.58892085]
[1771889878712,0.48473598,1856.2,1855.6,0.58892085]
[1771889878913,0.04527732,1856.3,1855.6,0.58892085]
[1771889879117,0.48475823,1856.2,1855.6,0.58892085]
[1771889879317,0.04527732,1856.4,1855.6,0.58892085]
[1771889879514,0.48482184,1856.3,1855.6,0.58892085]
[1771889879714,0.04527732,1856.4,1855.6,0.58892085]
[1771889879916,0.48482111,1856.3,1855.6,0.58892085]
[1771889880115,0.04527732,1856.4,1855.6,0.58892085]
[1771889880116,0.04527732,1856.5,1855.6,0.58892085]
[1771889880410,0.48481693,1856.4,1855.6,0.58892085]
[1771889880614,0.04560812,1856.5,1855.6,0.58892085]
[1771889880817,0.48486758,1856.4,1855.6,0.58892085]
[1771889881115,0.04560812,1856.7,1855.6,0.58892085]
[1771889881311,6.72765333,1856.6,1855.6,0.58892085]
[1771889881515,6.68204521,1856.5,1855.6,0.58892085]
[1771889881712,0.48488351,1856.4,1855.6,0.58892085]
[1771889881913,0.04560812,1856.6,1855.6,0.58892085]
[1771889882119,6.68212796,1856.5,1855.6,0.58892085]
[1771889882317,0.48490016,1856.4,1855.6,0.58892085]
[1771889882615,0.04232065,1856.8,1855.6,0.58892085]
[1771889882815,6.68310741,1856.7,1855.6,0.58892085]
[1771889883017,0.48496983,1856.6,1855.6,0.58892085]
[1771889883217,0.04232065,1856.8,1855.8,0.59276024]
[1771889883420,0.04232065,1856.8,1855.9,0.59276024]
[1771889883421,0.48508518,1856.7,1855.9,0.59276024]
[1771889883613,0.00631048,1856.8,1855.9,0.59276024]
[1771889883812,0.48511115,1856.7,1855.9,0.59276024]
[1771889884013,0.00631048,1856.8,1855.9,0.59276024]
[1771889886022,0.00631048,1856.8,1856.1,0.59273681]
[1771889886520,0.04976149,1856.8,1856.1,0.59273681]
[1771889891322,0.04976149,1856.8,1856.2,0.5872369]
[1771889891622,0.00631048,1856.8,1856.2,0.5872369]
[1771889893326,0.05282896,1856.8,1856.2,0.5872369]
[1771889894026,0.00631048,1856.8,1856.2,0.5872369]
[1771889896919,0.00631048,1856.8,1856.4,0.59092256]
[1771889897119,0.26932,1857.1,1856.4,0.59092256]
[1771889897318,6.66223153,1857.0,1856.4,0.59092256]
[1771889897518,0.31531601,1857.1,1856.4,0.59092256]
[1771889898022,0.32178317,1857.1,1856.4,0.59092256]
[1771889902226,0.04724418,1857.0,1856.4,0.59092256]
[1771889903128,0.27578716,1857.1,1856.4,0.59092256]
[1771889903327,0.00646716,1857.1,1856.4,0.59092256]
[1771889903524,0.00646716,1857.1,1856.6,0.586394]
[1771889903729,0.04805843,1857.6,1857.0,0.586394]
[1771889903928,0.56676023,1857.8,1857.0,0.586394]
[1771889904123,1.05096364,1857.7,1857.0,0.586394]
[1771889904322,0.56676023,1857.7,1857.0,0.586394]
[1771889904829,0.57315048,1857.7,1857.0,0.586394]
[1771889905529,0.57315048,1857.7,1857.2,0.57540429]
[1771889906030,0.00639025,1857.7,1857.2,0.57540429]
[1771889908534,0.57315048,1857.7,1857.2,0.57540429]
[1771889909032,0.56676023,1858.0,1857.4,0.57540429]
[1771889909532,0.56676023,1858.2,1857.4,0.57540429]
[1771889910228,0.57286746,1858.2,1857.4,0.57540429]
[1771889911231,0.00610723,1858.2,1857.4,0.57540429]
[1771889912553,0.57286746,1858.2,1857.4,0.57540429]
[1771889920844,0.57286746,1858.2,1856.9,0.57540429]
[1771889921053,0.56676023,1858.0,1856.9,0.57540429]
[1771889929358,0.57603028,1857.9,1857.0,0.56965292]
[1771889932956,0.84520028,1858.1,1857.0,0.56965292]
[1771889933158,6.63538853,1858.0,1857.0,0.56965292]
[1771889933356,0.48447444,1857.9,1857.0,0.56965292]
[1771889934052,0.48447444,1857.9,1857.2,0.56965292]
[1771889934258,0.26917,1858.1,1857.2,0.56965292]
[1771889934459,6.64268075,1858.0,1857.2,0.56965292]
[1771889934762,0.48500265,1857.9,1857.3,0.56965292]
[1771889934962,0.84520028,1858.1,1857.3,0.56965292]
[1771889935164,6.64281017,1858.0,1857.3,0.56965292]
[1771889935460,0.48501196,1857.9,1857.3,0.56965292]
[1771889935661,0.84520028,1858.1,1857.3,0.56965292]
[1771889935960,6.64319776,1858.0,1857.3,0.56965292]
[1771889936161,0.48503962,1857.9,1857.3,0.56965292]
[1771889936362,0.84520028,1858.1,1857.3,0.56965292]
[1771889936560,6.64387509,1858.0,1857.3,0.56965292]
[1771889936752,0.48508847,1857.9,1857.3,0.56965292]
[1771889936953,0.57603028,1858.1,1857.3,0.56965292]
[1771889937155,6.64390025,1858.0,1857.3,0.56965292]
[1771889937356,0.57603028,1858.1,1857.3,0.56965292]
[1771889937564,0.48512234,1858.0,1857.3,0.56965292]
[1771889937863,0.57603028,1858.1,1857.3,0.56965292]
[1771889938165,0.48513015,1858.0,1857.3,0.56965292]
[1771889938363,0.57603028,1858.1,1857.3,0.56965292]
[1771889938560,0.48515804,1858.0,1857.3,0.56965292]
[1771889938760,0.57603028,1858.1,1857.3,0.56965292]
[1771889938961,0.48516186,1858.0,1857.3,0.56965292]
[1771889939159,0.57603028,1858.1,1857.3,0.56965292]
[1771889939355,1.06119613,1858.0,1857.3,0.56965292]
[1771889939557,0.57603028,1858.0,1857.3,0.56965292]
[1771889941364,1.06120648,1857.9,1857.3,0.56965292]
[1771889941569,0.57603028,1857.9,1857.3,0.56965292]
[1771889942368,0.57603028,1858.1,1857.3,0.56965292]
[1771889942669,6.64605286,1858.0,1857.3,0.56965292]
[1771889942863,0.57603028,1858.1,1857.5,0.56965292]
[1771889943059,0.48526282,1858.0,1857.5,0.56965292]
[1771889943260,0.57603028,1858.1,1857.5,0.56965292]
[1771889943467,0.48532503,1858.0,1857.5,0.56965292]
[1771889943661,0.57603028,1858.1,1857.5,0.56965292]
[1771889943966,1.06140821,1858.0,1857.5,0.56965292]
[1771889944169,0.57603028,1858.0,1857.5,0.56965292]
[1771889945869,0.57603028,1857.8,1857.3,0.56965292]
[1771889948871,0.57603028,1857.6,1857.2,0.56965292]
[1771889950268,0.57603028,1857.6,1856.8,47.73867014]
[1771889950467,0.57603028,1857.6,1856.6,0.2761509]
[1771889950468,0.57603028,1857.4,1856.9,0.56965292]
[1771889957669,0.57603028,1857.4,1856.6,0.0067709]
[1771889957877,0.57603028,1857.2,1856.6,0.57642382]
[1771889959180,0.57603028,1857.2,1856.5,0.58619385]
[1771889960076,0.57603028,1857.2,1856.5,0.59062627]
[1771889961881,0.58864232,1857.0,1856.5,0.00443242]
[1771889963680,0.58864232,1857.0,1856.5,0.59773531]
[1771889963880,0.58864232,1857.0,1856.5,0.00443242]
[1771889964879,0.58864232,1857.0,1856.5,0.59773531]
[1771889973485,1.05664232,1857.2,1856.5,0.59773531]
[1771889976096,0.58864232,1857.1,1856.5,0.59773531]
[1771889979902,0.58864232,1856.9,1856.3,0.59330289]
[1771889980803,0.59317889,1856.9,1856.3,0.59887655]
[1771889984206,0.00453657,1856.9,1856.3,0.59887655]
[1771889986407,0.48636501,1856.8,1856.3,0.59887655]
[1771889986704,0.00453657,1856.9,1856.3,0.59887655]
[1771889986905,0.48633627,1856.8,1856.3,0.59887655]
[1771889987107,0.00453657,1856.9,1856.3,0.59887655]
[1771889987405,0.4863183,1856.8,1856.4,0.59330289]
[1771889987597,0.00453657,1856.9,1856.4,0.59330289]
[1771889987802,0.48657223,1856.8,1856.4,0.59330289]
[1771889988108,0.61403222,1856.9,1856.4,0.59330289]
[1771889988308,0.48657076,1856.8,1856.4,0.59330289]
[1771889988509,0.61403222,1856.9,1856.4,0.59330289]
[1771889988809,0.48657796,1856.8,1856.4,0.59330289]
[1771889989010,0.61403222,1856.9,1856.4,0.59330289]
[1771889989210,0.48657283,1856.8,1856.4,0.59330289]
[1771889989412,0.61403222,1856.9,1856.4,0.59330289]
[1771889989612,0.4865791,1856.8,1856.4,0.59330289]
[1771889989812,0.00453657,1856.9,1856.4,0.59330289]
[1771889990007,0.48664792,1856.8,1856.4,0.59330289]
[1771889990208,0.61403222,1856.9,1856.4,0.59330289]
[1771889990507,0.48665667,1856.8,1856.4,0.59330289]
[1771889990808,0.61403222,1856.9,1856.4,0.59330289]
[1771889991008,0.4866808,1856.8,1856.4,0.59330289]
[1771889991302,0.61403222,1856.9,1856.4,0.59330289]
[1771889991505,0.48674948,1856.8,1856.4,0.59330289]
[1771889991701,0.61403222,1856.9,1856.4,0.59330289]
[1771889991906,0.48675768,1856.8,1856.4,0.59330289]